bitfinex/quotes_BTCUSD_20260308
["timestamp","ask_amount","ask_price","bid_price","bid_amount"]
[1772936026962,0.00022001,67243.0,67236.0,0.07436492]
[1772936031078,0.02238467,67247.0,67236.0,0.07436492]
[1772936033794,0.07497022,67250.0,67236.0,0.07842057]
[1772936034401,0.02238467,67249.0,67236.0,0.07842057]
[1772936034603,0.02238467,67249.0,67236.0,0.07436492]
[1772936034808,0.02238467,67249.0,67237.0,0.00148]
[1772936035163,0.02238467,67248.0,67236.0,0.07436492]
[1772936035396,0.02238467,67246.0,67237.0,0.00148]
[1772936035603,0.02238467,67244.0,67237.0,0.00148]
[1772936035782,0.02238467,67244.0,67238.0,0.07436271]
[1772936036304,0.02238467,67243.0,67239.0,0.00148]
[1772936037705,0.02238467,67243.0,67240.0,0.00148]
[1772936039710,0.02238467,67243.0,67235.0,0.0002]
[1772936039909,0.02238467,67243.0,67236.0,0.00148]
[1772936040850,0.14905968,67250.0,67235.0,0.0002]
[1772936041025,0.00062001,67250.0,67237.0,0.00148]
[1772936041206,0.07496963,67250.0,67237.0,0.00148]
[1772936041803,0.00062001,67250.0,67238.0,0.07436271]
[1772936042202,0.00062001,67250.0,67239.0,0.07005893]
[1772936042552,0.00022001,67253.0,67241.0,0.0672873]
[1772936042694,0.00022001,67253.0,67243.0,0.089361]
[1772936042900,0.00022001,67253.0,67244.0,0.00148]
[1772936044397,0.00022001,67253.0,67245.0,0.07435497]
[1772936044594,0.00037001,67257.0,67245.0,0.07435497]
[1772936044799,0.00034003,67256.0,67247.0,0.0220737]
[1772936044998,0.00022001,67260.0,67249.0,0.0220737]
[1772936045186,0.00022001,67260.0,67250.0,0.090841]
[1772936045386,0.00022001,67260.0,67250.0,0.00148]
[1772936045633,0.02269505,67258.0,67251.0,0.00148]
[1772936045785,0.04445634,67260.0,67251.0,0.00148]
[1772936045786,0.07068428,67257.0,67251.0,0.00148]
[1772936045988,0.02269505,67255.0,67251.0,0.00148]
[1772936046599,0.02269505,67255.0,67252.0,0.07434723]
[1772936047813,0.00022001,67260.0,67252.0,0.07434723]
[1772936057525,0.00022001,67260.0,67253.0,0.00148]
[1772936059216,0.00220596,67261.0,67254.0,0.07434502]
[1772936059842,0.01322534,67262.0,67254.0,0.07434502]
[1772936063341,0.01230628,67262.0,67254.0,0.07434502]
[1772936063546,0.00022001,67267.0,67255.0,0.02308659]
[1772936063750,0.00022001,67267.0,67256.0,0.02308659]
[1772936064351,0.00022001,67267.0,67257.0,0.00148]
[1772936064553,0.00022001,67262.0,67257.0,0.00148]
[1772936065553,0.00022001,67262.0,67258.0,0.07434059]
[1772936071373,0.00022001,67262.0,67258.0,0.07417235]
[1772936071578,0.00022001,67262.0,67258.0,0.07366764]
[1772936071773,0.00022001,67262.0,67258.0,0.07349941]
[1772936078609,0.00022001,67262.0,67258.0,0.07497941]
[1772936082121,0.00022001,67262.0,67258.0,0.07481117]
[1772936082838,0.06952406,67261.0,67255.0,0.00148]
[1772936083197,0.0195167,67260.0,67253.0,0.00148]
[1772936083987,0.0195167,67260.0,67251.0,0.07434833]
[1772936084127,0.0195167,67260.0,67254.0,0.07434502]
[1772936084331,0.0195167,67260.0,67254.0,0.07400859]
[1772936085364,0.0195167,67260.0,67254.0,0.0738404]
[1772936088385,0.074339,67260.0,67252.0,0.00148]
[1772936088592,0.0195167,67259.0,67252.0,0.00148]
[1772936089575,0.0195167,67259.0,67254.0,0.0002]
[1772936090632,0.00575,67295.0,67256.0,0.01986744]
[1772936090831,0.06952406,67308.0,67277.0,0.06694336]
[1772936090832,0.06952406,67307.0,67277.0,0.06694336]
[1772936090986,0.0195167,67304.0,67279.0,0.01986744]
[1772936091178,0.06952406,67301.0,67281.0,0.01986744]
[1772936091381,0.08904076,67299.0,67287.0,0.11850084]
[1772936091619,0.08904076,67299.0,67288.0,0.26810689]
[1772936091817,0.08904076,67299.0,67289.0,0.14812605]
[1772936092089,0.08944157,67299.0,67290.0,0.14812605]
[1772936092283,0.07428464,67309.0,67290.0,0.14812605]
[1772936092284,0.00148,67320.0,67298.0,0.01986744]
[1772936092485,0.00148,67320.0,67305.0,0.01986744]
[1772936092486,0.00159323,67320.0,67305.0,0.01986744]
[1772936092705,0.00011323,67320.0,67307.0,0.01986744]
[1772936092925,0.00011323,67320.0,67308.0,0.14812605]
[1772936093163,0.00011323,67320.0,67307.0,0.01986744]
[1772936093361,0.08563399,67321.0,67308.0,0.1474197]
[1772936093528,0.08563399,67321.0,67309.0,0.14741319]
[1772936093731,0.08563399,67321.0,67308.0,0.00011323]
[1772936093952,0.08563399,67321.0,67309.0,0.14741288]
[1772936094149,0.08563399,67321.0,67308.0,0.00011323]
[1772936094752,0.08563399,67321.0,67308.0,0.0743986]
[1772936096960,0.00022001,67320.0,67308.0,0.0743986]
[1772936098608,0.00575,67322.0,67308.0,0.0743986]
[1772936098609,0.00723,67322.0,67309.0,0.01986744]
[1772936099305,0.00723,67322.0,67310.0,0.07428316]
[1772936100301,0.00723,67322.0,67311.0,0.01986744]
[1772936100730,0.00575,67322.0,67311.0,0.01986744]
[1772936102193,0.00575,67322.0,67312.0,0.07428096]
[1772936102194,0.01941351,67320.0,67312.0,0.07428096]
[1772936102436,0.10106113,67318.0,67312.0,0.07428096]
[1772936102600,0.01941351,67317.0,67312.0,0.07428096]
[1772936103258,0.01941351,67317.0,67308.0,0.00011323]
[1772936103545,0.01941351,67317.0,67310.0,0.07428206]
[1772936104017,0.01941351,67317.0,67309.0,0.07428427]
[1772936104965,0.01941351,67316.0,67308.0,0.07439842]
[1772936106300,0.01941351,67316.0,67308.0,0.00011323]
[1772936107250,0.09369058,67316.0,67308.0,0.00011323]
[1772936108248,0.01893918,67315.0,67294.0,0.11816411]
[1772936108455,0.01893918,67315.0,67269.0,0.39468301]
[1772936108456,0.08164762,67308.0,67292.0,0.07430303]
[1772936108681,0.04421326,67310.0,67292.0,0.07578303]
[1772936108682,0.01893918,67306.0,67292.0,0.07578303]
[1772936109031,0.01893918,67306.0,67292.0,0.09434435]
[1772936109440,0.01893918,67306.0,67294.0,0.001]
[1772936109645,0.01893918,67306.0,67292.0,0.09434435]
[1772936109843,0.00148,67305.0,67295.0,0.01856132]
[1772936110052,0.00148,67305.0,67295.0,0.01868133]
[1772936110451,0.00148,67305.0,67297.0,0.07429751]
[1772936110657,0.00148,67305.0,67298.0,0.00042421]
[1772936112680,0.00148,67305.0,67299.0,0.0742953]
[1772936114085,0.00148,67310.0,67300.0,0.01898634]
[1772936114447,0.0156971,67310.0,67300.0,0.00042502]
[1772936114649,0.08808788,67309.0,67299.0,0.0742953]
[1772936115281,0.07428427,67309.0,67299.0,0.0742953]
[1772936115678,0.00148,67310.0,67300.0,0.01856132]
[1772936115855,0.00148,67312.0,67301.0,0.01856132]
[1772936116207,0.07427984,67314.0,67303.0,0.01856132]
[1772936116390,0.00148,67313.0,67303.0,0.01856132]
[1772936116787,0.00148,67313.0,67304.0,0.0928511]
[1772936117191,0.07427654,67316.0,67304.0,0.0928511]
[1772936117403,0.00148,67313.0,67305.0,0.01856132]
[1772936118148,0.00148,67314.0,67306.0,0.14718359]
[1772936118296,0.00148,67314.0,67305.0,0.01856132]
[1772936118502,0.07427654,67316.0,67306.0,0.14718353]
[1772936118817,0.07427985,67313.0,67306.0,0.07428758]
[1772936119204,0.07427985,67313.0,67307.0,0.14738129]
[1772936119518,0.07427985,67313.0,67306.0,0.07428758]
[1772936120081,0.07427985,67313.0,67307.0,0.14769643]
[1772936120417,0.07427985,67313.0,67306.0,0.07428758]
[1772936120418,0.07427985,67313.0,67308.0,0.14769643]
[1772936120624,0.07427985,67313.0,67306.0,0.07428758]
[1772936120625,0.07427985,67313.0,67309.0,0.14769643]
[1772936120788,0.07427985,67313.0,67306.0,0.07428758]
[1772936120989,0.07427985,67313.0,67307.0,0.14767115]
[1772936121190,0.07427985,67313.0,67308.0,0.14767115]
[1772936121388,0.07427985,67313.0,67309.0,0.14767115]
[1772936121589,0.07427985,67313.0,67303.0,0.11816411]
[1772936121797,0.07427985,67313.0,67302.0,0.07429191]
[1772936121798,0.01276109,67312.0,67302.0,0.07429191]
[1772936122887,0.00015,67308.0,67302.0,0.07429191]
[1772936123230,0.00015,67308.0,67301.0,0.07429244]
[1772936124062,0.00015,67308.0,67305.0,0.0002]
[1772936129317,0.00015,67308.0,67301.0,0.07429244]
[1772936131711,0.00015,67308.0,67301.0,0.19245655]
[1772936132405,0.00015,67308.0,67301.0,0.19265655]
[1772936132872,0.00015,67308.0,67301.0,0.07449244]
[1772936133671,0.00015,67308.0,67303.0,0.07429089]
[1772936134484,0.22259112,67318.0,67308.0,0.01856132]
[1772936134854,0.22259112,67318.0,67310.0,0.01856132]
[1772936134855,0.07427454,67318.0,67310.0,0.01856132]
[1772936135651,0.07427454,67318.0,67311.0,0.07428206]
[1772936136448,0.07427454,67318.0,67311.0,0.09284338]
[1772936137976,0.00148,67320.0,67311.0,0.09284338]
[1772936138349,0.07427102,67321.0,67311.0,0.09284338]
[1772936138569,0.00148,67320.0,67311.0,0.09284338]
[1772936139258,0.07427102,67321.0,67311.0,0.04290494]
[1772936139460,0.01580386,67317.0,67301.0,0.07449286]
[1772936139680,0.08176952,67315.0,67302.0,0.00148]
[1772936139880,0.01728386,67314.0,67301.0,0.07449286]
[1772936140083,0.01580386,67312.0,67301.0,0.07449286]
[1772936141200,0.01580386,67312.0,67307.0,0.0002]
[1772936142479,0.07428206,67311.0,67307.0,0.0002]
[1772936143102,0.09008592,67311.0,67307.0,0.0002]
[1772936143982,0.07428206,67311.0,67307.0,0.0002]
[1772936145336,0.07427985,67313.0,67307.0,0.0002]
[1772936147544,0.07575906,67314.0,67307.0,0.0002]
[1772936148176,0.07427906,67314.0,67307.0,0.0002]
[1772936148396,0.00148,67313.0,67307.0,0.0002]
[1772936149367,0.07428096,67312.0,67307.0,0.0002]
[1772936149569,0.00148,67313.0,67308.0,0.01606427]
[1772936149768,0.00148,67313.0,67307.0,0.0002]
[1772936149769,0.00148,67313.0,67309.0,0.01606427]
[1772936151188,0.07449612,67317.0,67309.0,0.01606427]
[1772936151405,0.00148,67316.0,67310.0,0.07428316]
[1772936151760,0.07575709,67316.0,67310.0,0.07428316]
[1772936153316,0.07575709,67316.0,67309.0,0.09034853]
[1772936153648,0.07575709,67316.0,67309.0,0.09055573]
[1772936154569,0.07575709,67316.0,67307.0,0.07448616]
[1772936154570,0.07575709,67316.0,67307.0,0.07448617]
[1772936154725,0.07575709,67316.0,67307.0,0.0002]
[1772936154927,0.07427709,67316.0,67307.0,0.0002]
[1772936155129,0.22254597,67340.0,67308.0,0.01606427]
[1772936155331,0.07425563,67335.0,67310.0,0.08204265]
[1772936155533,0.07442298,67334.0,67313.0,0.01606427]
[1772936155734,0.00148,67333.0,67318.0,0.01606427]
[1772936155937,0.00148,67333.0,67315.0,0.07427764]
[1772936155938,0.00148,67333.0,67322.0,0.01606427]
[1772936156156,0.0001659,67334.0,67323.0,0.01606427]
[1772936156478,0.00148,67333.0,67324.0,0.01606427]
[1772936156673,0.0001659,67334.0,67324.0,0.01606427]
[1772936156840,0.00148,67333.0,67324.0,0.01606427]
[1772936157024,0.00155729,67333.0,67320.0,0.01754427]
[1772936159651,0.07425889,67332.0,67321.0,0.09033529]
[1772936159847,0.07425889,67332.0,67322.0,0.01606427]
[1772936161305,0.07425889,67332.0,67320.0,0.07575102]
[1772936161853,0.07425889,67332.0,67320.0,0.09181529]
[1772936162054,0.07339382,67332.0,67320.0,0.09033529]
[1772936162908,0.07339382,67332.0,67321.0,0.01505605]
[1772936163891,0.07339382,67332.0,67322.0,0.07426992]
[1772936167822,0.07339382,67332.0,67322.0,0.08932597]
[1772936168345,0.07361383,67332.0,67322.0,0.08932597]
[1772936171566,0.07361383,67332.0,67322.0,0.07426992]
[1772936171770,0.07361383,67332.0,67324.0,0.07426772]
[1772936172170,0.07361383,67332.0,67320.0,0.07427213]
[1772936172171,0.08599234,67332.0,67320.0,0.07427213]
[1772936172374,0.07361383,67332.0,67320.0,0.07427213]
[1772936172571,0.01237851,67331.0,67320.0,0.07427213]
[1772936174045,0.0742611,67330.0,67318.0,0.07575213]
[1772936174798,0.0742611,67330.0,67318.0,0.07427213]
[1772936174997,0.0742611,67330.0,67318.0,0.08868744]
[1772936175397,0.0742611,67330.0,67319.0,0.01441531]
[1772936176005,0.07426053,67331.0,67320.0,0.07427213]
[1772936176662,0.07426053,67331.0,67322.0,0.0002]
[1772936177792,0.07603562,67333.0,67323.0,0.07938122]
[1772936177996,0.0742611,67332.0,67325.0,0.07426661]
[1772936178209,0.0742611,67332.0,67326.0,0.01441531]
[1772936178632,0.0002973,67333.0,67326.0,0.01441531]
[1772936178855,0.01158512,67342.0,67329.0,0.07938122]
[1772936178856,0.07573299,67338.0,67329.0,0.07938122]
[1772936179007,0.07573299,67338.0,67330.0,0.01441531]
[1772936179647,0.0005374,67339.0,67332.0,0.01441531]
[1772936179815,0.0005374,67339.0,67332.0,0.0144926]
[1772936179993,0.0005374,67339.0,67333.0,0.07425779]
[1772936181291,0.0005374,67339.0,67333.0,0.0886731]
[1772936181494,0.07478874,67339.0,67328.0,0.0742625]
[1772936181674,0.07490877,67339.0,67329.0,0.0742622]
[1772936182048,0.07490877,67339.0,67328.0,0.0742625]
[1772936182253,0.07490884,67339.0,67328.0,0.0742625]
[1772936182648,0.00065743,67339.0,67328.0,0.0742625]
[1772936182829,0.00065743,67339.0,67329.0,0.01441531]
[1772936184109,0.07490892,67339.0,67330.0,0.0742611]
[1772936185024,0.07512893,67339.0,67330.0,0.0742611]
[1772936186196,0.07512893,67339.0,67329.0,0.0744611]
[1772936190308,0.07512893,67339.0,67326.0,0.0742633]
[1772936190309,0.01334395,67338.0,67326.0,0.07426551]
[1772936190535,0.08158691,67337.0,67326.0,0.07426551]
[1772936190691,0.01334395,67336.0,67326.0,0.07426551]
[1772936192548,0.07425558,67335.0,67322.0,0.0002]
[1772936192753,0.00148,67334.0,67322.0,0.00168]
[1772936192915,0.00148,67334.0,67322.0,0.01609531]
[1772936193330,0.00148,67334.0,67324.0,0.01441531]
[1772936193643,0.00148,67334.0,67326.0,0.01441531]
[1772936194028,0.00132722,67334.0,67326.0,0.01461531]
[1772936195745,0.07558412,67334.0,67327.0,0.07426441]
[1772936195947,0.07558412,67334.0,67327.0,0.08867972]
[1772936202719,0.07580413,67334.0,67327.0,0.08867972]
[1772936203130,0.07580413,67334.0,67328.0,0.01307395]
[1772936205930,0.07425501,67336.0,67330.0,0.01296283]
[1772936206712,0.07425558,67335.0,67330.0,0.01296283]
[1772936206912,0.07425501,67336.0,67330.0,0.08722388]
[1772936208305,0.00087744,67339.0,67326.0,0.07446441]
[1772936208533,0.07439919,67341.0,67329.0,0.08405284]
[1772936208704,0.07439919,67341.0,67330.0,0.01287858]
[1772936208893,0.07439919,67341.0,67331.0,0.00042401]
[1772936209088,0.07439919,67341.0,67331.0,0.01287858]
[1772936209299,0.07587919,67341.0,67332.0,0.00042399]
[1772936209530,0.07587919,67341.0,67330.0,0.01287858]
[1772936209710,0.07439919,67341.0,67330.0,0.01287858]
[1772936209911,0.07587919,67341.0,67330.0,0.01287858]
[1772936210332,0.07587919,67341.0,67331.0,0.07425999]
[1772936212258,0.07587919,67341.0,67332.0,0.01266661]
[1772936212434,0.07587919,67341.0,67333.0,0.07425779]
[1772936212816,0.0760992,67341.0,67333.0,0.07425779]
[1772936214418,0.0764718,67341.0,67333.0,0.07425779]
[1772936223323,0.0764718,67341.0,67333.0,0.08641406]
[1772936223538,0.0749918,67341.0,67333.0,0.08641406]
[1772936223726,0.0764718,67341.0,67333.0,0.08641406]
[1772936226004,0.0764718,67341.0,67333.0,0.01215627]
[1772936226173,0.0764718,67341.0,67330.0,0.0002]
[1772936226380,0.08121404,67340.0,67329.0,0.00148]
[1772936227373,0.07425117,67339.0,67329.0,0.00148]
[1772936228479,0.08121404,67338.0,67326.0,0.0002]
[1772936228646,0.08121404,67338.0,67326.0,0.07458483]
[1772936229064,0.07462377,67339.0,67326.0,0.07458483]
[1772936229289,0.07462377,67339.0,67327.0,0.01184658]
[1772936231898,0.07462377,67339.0,67327.0,0.08611095]
[1772936235214,0.07462377,67339.0,67327.0,0.07426437]
[1772936235413,0.07462377,67339.0,67327.0,0.0858142]
[1772936235758,0.07462377,67339.0,67327.0,0.07426437]
[1772936235967,0.07462377,67339.0,67328.0,0.01154983]
[1772936237747,0.07462377,67339.0,67328.0,0.07426321]
[1772936238025,0.07462377,67339.0,67329.0,0.01145937]
[1772936247842,0.07484378,67339.0,67329.0,0.01145937]
[1772936248515,0.07484378,67339.0,67331.0,0.01101878]
[1772936249192,0.07632378,67339.0,67331.0,0.01101878]
[1772936249396,0.07632378,67339.0,67328.0,0.0002]
[1772936249597,0.07632378,67339.0,67329.0,0.01101878]
[1772936256357,0.07632378,67339.0,67329.0,0.0742621]
[1772936256519,0.07632378,67339.0,67330.0,0.01101878]
[1772936259175,0.07632378,67339.0,67330.0,0.07426102]
[1772936259383,0.07632378,67339.0,67331.0,0.01065438]
[1772936259932,0.00148,67338.0,67331.0,0.01065438]
[1772936260481,0.0012,67350.0,67332.0,0.08143865]
[1772936260661,0.0754395,67350.0,67335.0,0.01066359]
[1772936260864,0.0754395,67350.0,67339.0,0.01066359]
[1772936261097,0.0754395,67350.0,67341.0,0.01066359]
[1772936261260,0.0754395,67350.0,67343.0,0.01066359]
[1772936265063,0.07565951,67350.0,67343.0,0.01066359]
[1772936273231,0.07565951,67350.0,67343.0,0.01086359]
[1772936274884,0.07439294,67352.0,67343.0,0.01086359]
[1772936274885,0.07422913,67359.0,67344.0,0.01103358]
[1772936275081,0.07422913,67359.0,67346.0,0.01103358]
[1772936275582,0.07423133,67357.0,67348.0,0.01103358]
[1772936276084,0.00148,67356.0,67348.0,0.01103358]
[1772936276692,0.00158103,67356.0,67348.0,0.01103358]
[1772936276859,0.00010103,67356.0,67348.0,0.01103358]
[1772936277076,0.00158103,67356.0,67348.0,0.01103358]
[1772936277918,0.00010103,67356.0,67348.0,0.01103358]
[1772936278276,0.00158103,67356.0,67348.0,0.01103358]
[1772936279932,0.07423353,67355.0,67348.0,0.01103358]
[1772936281778,0.07423353,67355.0,67343.0,0.08439173]
[1772936282274,0.07423353,67355.0,67343.0,0.08439161]
[1772936282439,0.07423353,67355.0,67344.0,0.0106286]
[1772936283053,0.07603356,67356.0,67345.0,0.0106286]
[1772936283259,0.07603356,67356.0,67347.0,0.0106286]
[1772936283973,0.07455356,67356.0,67347.0,0.0106286]
[1772936284372,0.07455356,67356.0,67349.0,0.01111226]
[1772936284948,0.07455356,67356.0,67350.0,0.00042389]
[1772936285352,0.07455356,67356.0,67350.0,0.01153615]
[1772936287717,0.01076163,67355.0,67334.0,0.0106286]
[1772936287907,0.01076163,67355.0,67328.0,0.0002]
[1772936287908,0.01076163,67348.0,67328.0,0.0002]
[1772936288122,0.01076163,67344.0,67330.0,0.07426071]
[1772936288336,0.08475722,67343.0,67330.0,0.07426071]
[1772936288695,0.08475722,67343.0,67329.0,0.0002]
[1772936288896,0.04411692,67341.0,67329.0,0.0002]
[1772936289151,0.00148,67340.0,67331.0,0.0011214]
[1772936289355,0.00148,67340.0,67331.0,0.0001214]
[1772936289875,0.07425117,67339.0,67331.0,0.0001214]
[1772936290237,0.07425117,67339.0,67336.0,0.0002]
[1772936291565,0.07204377,67339.0,67336.0,0.0002]
[1772936292371,0.08460363,67338.0,67329.0,0.0002]
[1772936293154,0.07208901,67339.0,67329.0,0.0002]
[1772936293357,0.07204377,67339.0,67329.0,0.0002]
[1772936294181,0.07229747,67339.0,67329.0,0.0002]
[1772936294383,0.00148,67338.0,67329.0,0.0002]
[1772936294815,0.0002537,67339.0,67329.0,0.0002]
[1772936295015,0.00148,67338.0,67329.0,0.01155506]
[1772936296115,0.0017337,67338.0,67329.0,0.01155506]
[1772936296834,0.07425338,67337.0,67329.0,0.01155506]
[1772936304370,0.07425338,67337.0,67329.0,0.08581683]
[1772936304553,0.07425338,67337.0,67329.0,0.01155506]
[1772936304757,0.000424,67336.0,67329.0,0.01155506]
[1772936307866,0.000424,67336.0,67329.0,0.08581616]
[1772936308108,0.07467748,67337.0,67331.0,0.01048357]
[1772936311088,0.07489749,67337.0,67331.0,0.01048357]
[1772936311634,0.07447349,67337.0,67331.0,0.01048357]
[1772936312385,0.07447349,67337.0,67331.0,0.08474305]
[1772936313078,0.07447349,67337.0,67331.0,0.01048357]
[1772936313424,0.000424,67336.0,67330.0,0.07426106]
[1772936313897,0.000424,67336.0,67329.0,0.0744611]
[1772936314095,0.07425558,67335.0,67329.0,0.0002]
[1772936315157,0.07425558,67335.0,67329.0,0.00032003]
[1772936316503,0.07425558,67335.0,67329.0,0.07458152]
[1772936316730,0.07425558,67335.0,67329.0,0.08498135]
[1772936316905,0.07425558,67335.0,67326.0,0.0002]
[1772936317111,0.01057117,67334.0,67325.0,0.0004]
[1772936317516,0.01014717,67329.0,67317.0,0.07427445]
[1772936317658,0.01014717,67327.0,67317.0,0.07575445]
[1772936317862,0.01014717,67327.0,67317.0,0.07427445]
[1772936318281,0.01014717,67327.0,67316.0,0.07595549]
[1772936318553,0.07426551,67326.0,67316.0,0.00168]
[1772936319292,0.07426551,67326.0,67316.0,0.0002]
[1772936320056,0.07426551,67326.0,67322.0,0.0002]
[1772936320244,0.07426551,67326.0,67316.0,0.0002]
[1772936326496,0.07426551,67327.0,67319.0,0.07427323]
[1772936326697,0.07426521,67328.0,67320.0,0.00932591]
[1772936328611,0.0742633,67330.0,67320.0,0.00932591]
[1772936328779,0.0742633,67330.0,67321.0,0.00932591]
[1772936333665,0.0742633,67330.0,67321.0,0.00952591]
[1772936339659,0.08326053,67319.0,67294.0,0.00952591]
[1772936339919,0.08326053,67309.0,67294.0,0.00952591]
[1772936340190,0.0920594,67301.0,67284.0,0.00932591]
[1772936340366,0.00148,67300.0,67286.0,0.00932591]
[1772936340727,0.00885377,67298.0,67283.0,0.0001791]
[1772936340894,0.0921143,67296.0,67285.0,0.00148]
[1772936341074,0.00885377,67295.0,67285.0,0.00040081]
[1772936341280,0.07430082,67294.0,67285.0,0.00040081]
[1772936343261,0.07430082,67296.0,67285.0,0.00040081]
[1772936343980,0.15853788,67297.0,67285.0,0.00040081]
[1772936344627,0.15853788,67297.0,67285.0,0.00817988]
[1772936345643,0.08423795,67296.0,67285.0,0.00040081]
[1772936345943,0.08551698,67296.0,67285.0,0.00040081]
[1772936346301,0.08423795,67296.0,67285.0,0.00040081]
[1772936346557,0.07429993,67297.0,67285.0,0.00817988]
[1772936348419,0.07429993,67297.0,67285.0,0.00837988]
[1772936349681,0.00148,67300.0,67288.0,0.08596852]
[1772936349908,0.00148,67299.0,67289.0,0.0081246]
[1772936353476,0.00148,67299.0,67273.0,0.0001836]
[1772936353477,0.08423795,67292.0,67273.0,0.0001836]
[1772936353700,0.04411817,67283.0,67273.0,0.0001836]
[1772936353909,0.08423795,67288.0,67273.0,0.00810912]
[1772936355183,0.04396817,67290.0,67273.0,0.00810912]
[1772936355541,0.04439217,67290.0,67273.0,0.00810912]
[1772936355667,0.07430635,67289.0,67273.0,0.00810912]
[1772936356695,0.07430635,67289.0,67275.0,0.0002]
[1772936357703,0.07430855,67287.0,67275.0,0.0002]
[1772936359060,0.00761145,67283.0,67252.0,0.08608852]
[1772936359265,0.4411817,67285.0,67252.0,0.08608852]
[1772936359266,0.04411817,67262.0,67252.0,0.08608852]
[1772936359475,0.04411817,67262.0,67253.0,0.00792552]
[1772936359764,0.07433728,67261.0,67252.0,0.00012]
[1772936360338,0.07433728,67261.0,67252.0,0.00024001]
[1772936361782,0.0793367,67261.0,67252.0,0.00024001]
[1772936362332,0.07433728,67261.0,67252.0,0.00024001]
[1772936363714,0.07533728,67261.0,67252.0,0.00024001]
[1772936364223,0.07533728,67261.0,67252.0,0.00044001]
[1772936364865,0.07533728,67261.0,67253.0,0.00792552]
[1772936365065,0.07433728,67262.0,67255.0,0.00792552]
[1772936365462,0.07581728,67262.0,67255.0,0.00792552]
[1772936365671,0.07433728,67261.0,67255.0,0.00792552]
[1772936366288,0.00148,67265.0,67255.0,0.00792552]
[1772936366490,0.07433065,67267.0,67255.0,0.00792552]
[1772936366823,0.00148,67266.0,67255.0,0.00792552]
[1772936367225,0.07433065,67267.0,67255.0,0.00792552]
[1772936367411,0.00148,67266.0,67255.0,0.00792552]
[1772936367766,0.1185579,67265.0,67252.0,0.00044001]
[1772936367972,0.08423795,67264.0,67252.0,0.00044001]
[1772936368205,0.08909082,67264.0,67252.0,0.00044001]
[1772936368447,0.08423795,67264.0,67252.0,0.00836553]
[1772936369172,0.08423795,67261.0,67226.0,0.07437377]
[1772936369369,0.00773123,67247.0,67228.0,0.00792552]
[1772936369576,0.00148,67246.0,67231.0,0.00792552]
[1772936369804,0.00148,67246.0,67233.0,0.00792552]
[1772936369805,0.07435497,67245.0,67233.0,0.00792552]
[1772936370480,0.07435497,67245.0,67236.0,0.08596852]
[1772936370688,0.07435497,67245.0,67237.0,0.00792552]
[1772936371778,0.07434878,67251.0,67237.0,0.00792552]
[1772936371978,0.00148,67248.0,67237.0,0.00792552]
[1772936372436,0.00148,67248.0,67245.0,0.0002]
[1772936372980,0.00133,67248.0,67245.0,0.0002]
[1772936373987,0.07435275,67247.0,67245.0,0.0002]
[1772936374412,0.08208398,67247.0,67245.0,0.0002]
[1772936375730,0.08308398,67247.0,67245.0,0.0002]
[1772936379460,0.08137095,67247.0,67245.0,0.0002]
[1772936379657,0.08137095,67247.0,67238.0,0.0002]
[1772936380434,0.08037095,67247.0,67238.0,0.0002]
[1772936382228,0.000424,67246.0,67238.0,0.0002]
[1772936382565,0.00022001,67248.0,67238.0,0.0002]
[1772936382775,0.0743437,67256.0,67239.0,0.08646369]
[1772936382776,0.07582944,67251.0,67239.0,0.08646369]
[1772936382990,0.07434944,67251.0,67239.0,0.08646369]
[1772936383201,0.07434951,67250.0,67239.0,0.08646369]
[1772936383983,0.07434951,67250.0,67240.0,0.00042403]
[1772936384184,0.07434502,67254.0,67241.0,0.07435939]
[1772936384531,0.00148,67251.0,67241.0,0.07435939]
[1772936386218,0.00148,67251.0,67238.0,0.0002]
[1772936386219,0.07434944,67250.0,67238.0,0.0002]
[1772936388755,0.07456945,67250.0,67238.0,0.0002]
[1772936390325,0.07456945,67250.0,67238.0,0.07456271]
[1772936393728,0.07456945,67250.0,67239.0,0.00042403]
[1772936394230,0.07456945,67250.0,67240.0,0.07436049]
[1772936394428,0.07456945,67250.0,67241.0,0.00042509]
[1772936394669,0.22263286,67255.0,67241.0,0.00042509]
[1772936394796,0.00148,67253.0,67242.0,0.00042509]
[1772936395012,0.00022001,67257.0,67243.0,0.08646369]
[1772936395222,0.07433963,67259.0,67245.0,0.08646369]
[1772936395460,0.07581963,67259.0,67247.0,0.08646369]
[1772936395638,0.07581963,67259.0,67248.0,0.00042503]
[1772936396246,0.07433963,67259.0,67249.0,0.07435054]
[1772936396450,0.07581963,67259.0,67249.0,0.07435054]
[1772936396648,0.07581963,67259.0,67249.0,0.07447056]
[1772936396846,0.07433963,67259.0,67249.0,0.07447056]
[1772936397771,0.00022001,67253.0,67250.0,0.00042501]
[1772936398478,0.00022001,67253.0,67251.0,0.07434833]
[1772936399978,0.00022001,67253.0,67252.0,0.00042499]
[1772936400179,0.07434129,67258.0,67252.0,0.00042499]
[1772936400391,0.07434129,67258.0,67252.0,0.00025685]
[1772936400540,0.07434129,67258.0,67251.0,0.07434833]
[1772936400744,1e-08,67262.0,67251.0,0.07434833]
[1772936400941,1e-08,67262.0,67251.0,0.16081202]
[1772936401142,0.07433629,67262.0,67251.0,0.07434833]
[1772936401979,0.07433629,67262.0,67257.0,0.00015]
[1772936402176,0.005,67261.0,67257.0,0.00015]
[1772936402613,0.07433629,67262.0,67257.0,0.00015]
[1772936406513,0.00022001,67261.0,67257.0,0.00015]
[1772936408367,0.09147843,67276.0,67258.0,0.00148]
[1772936408529,0.00148,67274.0,67260.0,0.07433838]
[1772936408938,0.00148,67273.0,67260.0,0.07433838]
[1772936409344,0.0004,67275.0,67260.0,0.07433838]
[1772936409622,0.00188,67275.0,67261.0,0.08928757]
[1772936410047,0.0004,67275.0,67261.0,0.08928757]
[1772936410799,0.0004,67275.0,67262.0,0.07433617]
[1772936411434,0.07472186,67275.0,67262.0,0.07433617]
[1772936411635,0.07972186,67275.0,67262.0,0.07433617]
[1772936411837,0.07472186,67275.0,67262.0,0.07433617]
[1772936412037,0.07972186,67275.0,67262.0,0.07433617]
[1772936413104,0.07972186,67275.0,67261.0,0.07433617]
[1772936416067,0.07994187,67275.0,67261.0,0.07433617]
[1772936418211,0.005,67274.0,67261.0,0.07433617]
[1772936420199,0.07932341,67274.0,67261.0,0.07433617]
[1772936424720,0.07954342,67274.0,67261.0,0.07433617]
[1772936426397,0.00022001,67274.0,67261.0,0.07433617]
[1772936426573,0.00062001,67275.0,67262.0,0.08928757]
[1772936426871,0.00148,67276.0,67262.0,0.08928757]
[1772936427477,0.08613706,67278.0,67262.0,0.08928757]
[1772936427669,0.00148,67277.0,67262.0,0.08928757]
[1772936428626,0.00148,67277.0,67263.0,0.07433507]
[1772936428826,0.00148,67277.0,67264.0,0.00148]
[1772936429735,0.09113706,67278.0,67264.0,0.00148]
[1772936429939,0.08613706,67278.0,67265.0,0.08928757]
[1772936430143,0.01181856,67278.0,67265.0,0.08928757]